[Event "December 5 Late 2023"]
[Site "https://www.chess.com"]
[Date "2023.12.05"]
[Round "7"]
[White "Teumer, Joerg, Dr."]
[Black "Figorito, Nick"]
[Result "1-0"]
[Board "121"]
[TimeControl "180+1"]
[WhiteFideId "4643526"]
[BlackFideId "30923689"]
[WhiteElo "2125"]
[BlackElo "2377"]
[WhiteTeam "GER"]
[BlackTeam "USA"]
[WhiteClock "0:00:47"]
[BlackClock "0:00:03"]

1. d4 {[%clk 0:03:00]}  Nf6 {[%clk 0:03:00]} 2. Bg5 {[%clk 0:03:00]}  d5 {[%clk 0:02:59]} 3. Bxf6 {[%clk 0:02:59]}  exf6 {[%clk 0:03:00]} 4. e3 {[%clk 0:02:58]}  Bd6 {[%clk 0:03:00]} 5. Nf3 {[%clk 0:02:47]}  O-O {[%clk 0:02:59]} 6. c4 {[%clk 0:02:45]}  dxc4 {[%clk 0:02:59]} 7. Bxc4 {[%clk 0:02:44]}  c6 {[%clk 0:02:58]} 8. Nc3 {[%clk 0:02:40]}  Nd7 {[%clk 0:02:58]} 9. O-O {[%clk 0:02:39]}  f5 {[%clk 0:02:58]} 10. Qc2 {[%clk 0:02:33]}  Nf6 {[%clk 0:02:58]} 11. Bd3 {[%clk 0:02:33]}  g6 {[%clk 0:02:58]} 12. g3 {[%clk 0:02:28]}  Re8 {[%clk 0:02:57]} 13. Rac1 {[%clk 0:02:25]}  Be6 {[%clk 0:02:57]} 14. b3 {[%clk 0:02:22]}  Nd5 {[%clk 0:02:56]} 15. Nxd5 {[%clk 0:02:19]}  Bxd5 {[%clk 0:02:56]} 16. Be2 {[%clk 0:02:17]}  Ba3 {[%clk 0:02:50]} 17. Rcd1 {[%clk 0:02:17]}  Be4 {[%clk 0:02:48]} 18. Qc3 {[%clk 0:02:08]}  Bd6 {[%clk 0:02:29]} 19. Nd2 {[%clk 0:02:06]}  Bd5 {[%clk 0:02:27]} 20. Bc4 {[%clk 0:02:05]}  Bc7 {[%clk 0:02:20]} 21. Bxd5 {[%clk 0:02:04]}  Qxd5 {[%clk 0:02:21]} 22. Qc4 {[%clk 0:02:02]}  Qd7 {[%clk 0:02:08]} 23. Nf3 {[%clk 0:01:58]}  Rad8 {[%clk 0:02:02]} 24. Rc1 {[%clk 0:01:58]}  Qd5 {[%clk 0:01:51]} 25. Qxd5 {[%clk 0:01:57]}  Rxd5 {[%clk 0:01:52]} 26. Rc4 {[%clk 0:01:55]}  Rdd8 {[%clk 0:01:34]} 27. Rfc1 {[%clk 0:01:54]}  Bd6 {[%clk 0:01:32]} 28. Kg2 {[%clk 0:01:53]}  a6 {[%clk 0:01:32]} 29. R1c2 {[%clk 0:01:54]}  Kg7 {[%clk 0:01:33]} 30. Rc1 {[%clk 0:01:47]}  h5 {[%clk 0:01:32]} 31. h4 {[%clk 0:01:47]}  Kf6 {[%clk 0:01:31]} 32. R4c2 {[%clk 0:01:44]}  Ba3 {[%clk 0:01:21]} 33. Rd1 {[%clk 0:01:43]}  Bd6 {[%clk 0:01:21]} 34. Rdc1 {[%clk 0:01:43]}  Ke6 {[%clk 0:01:15]} 35. Rc4 {[%clk 0:01:42]}  f6 {[%clk 0:01:15]} 36. R1c2 {[%clk 0:01:39]}  Rg8 {[%clk 0:01:10]} 37. Rc1 {[%clk 0:01:35]}  g5 {[%clk 0:01:10]} 38. Rh1 {[%clk 0:01:30]}  g4 {[%clk 0:01:08]} 39. Ne1 {[%clk 0:01:27]}  Rc8 {[%clk 0:01:05]} 40. Nd3 {[%clk 0:01:27]}  Rc7 {[%clk 0:00:57]} 41. Rhc1 {[%clk 0:01:26]}  Rgc8 {[%clk 0:00:57]} 42. Kf1 {[%clk 0:01:25]}  Kd5 {[%clk 0:00:48]} 43. Ke2 {[%clk 0:01:23]}  c5 {[%clk 0:00:32]} 44. dxc5 {[%clk 0:01:20]}  Bxc5 {[%clk 0:00:32]} 45. Nf4+ {[%clk 0:01:10]}  Ke5 {[%clk 0:00:24]} 46. Nxh5 {[%clk 0:01:02]}  Bd6 {[%clk 0:00:24]} 47. Rxc7 {[%clk 0:01:01]}  Rxc7 {[%clk 0:00:25]} 48. Rxc7 {[%clk 0:01:01]}  Bxc7 {[%clk 0:00:26]} 49. Kd3 {[%clk 0:01:00]}  Ba5 {[%clk 0:00:23]} 50. Nf4 {[%clk 0:00:58]}  Be1 {[%clk 0:00:23]} 51. Ke2 {[%clk 0:00:58]}  Bb4 {[%clk 0:00:23]} 52. Nd3+ {[%clk 0:00:59]}  Ke4 {[%clk 0:00:23]} 53. h5 {[%clk 0:00:56]}  Bf8 {[%clk 0:00:22]} 54. Nf4 {[%clk 0:00:55]}  Bh6 {[%clk 0:00:20]} 55. Ne6 {[%clk 0:00:54]}  b5 {[%clk 0:00:15]} 56. Nc7 {[%clk 0:00:53]}  Ke5 {[%clk 0:00:10]} 57. Nxa6 {[%clk 0:00:53]}  Kd5 {[%clk 0:00:10]} 58. Kd3 {[%clk 0:00:52]}  Bg5 {[%clk 0:00:08]} 59. Nb4+ {[%clk 0:00:47]}  Kc5 {[%clk 0:00:08]} 60. Nc2 {[%clk 0:00:47]}  b4 {[%clk 0:00:03]} 61. Nd4 {[%clk 0:00:47]} 1-0

[Event "December 5 Late 2023"]
[Site "https://www.chess.com"]
[Date "2023.12.05"]
[Round "7"]
[White "Melikhov, Evgeny V."]
[Black "Vanek, Tomas"]
[Result "0-1"]
[Board "122"]
[TimeControl "180+1"]
[WhiteFideId "4122046"]
[BlackFideId "313459"]
[WhiteElo "2377"]
[BlackElo "2179"]
[WhiteTeam "GRE"]
[BlackTeam "CZE"]
[WhiteClock "0:00:20"]
[BlackClock "0:00:15"]

1. d4 {[%clk 0:03:00]}  f5 {[%clk 0:02:59]} 2. e4 {[%clk 0:03:00]}  fxe4 {[%clk 0:02:58]} 3. Nc3 {[%clk 0:03:00]}  Nf6 {[%clk 0:02:59]} 4. Bg5 {[%clk 0:03:00]}  g6 {[%clk 0:02:59]} 5. Bc4 {[%clk 0:02:53]}  e6 {[%clk 0:02:59]} 6. d5 {[%clk 0:02:50]}  Be7 {[%clk 0:02:45]} 7. Bxf6 {[%clk 0:02:27]}  Bxf6 {[%clk 0:02:44]} 8. Nxe4 {[%clk 0:02:27]}  Be7 {[%clk 0:02:11]} 9. d6 {[%clk 0:02:02]}  cxd6 {[%clk 0:02:06]} 10. Nxd6+ {[%clk 0:02:02]}  Bxd6 {[%clk 0:02:05]} 11. Qxd6 {[%clk 0:02:02]}  Qg5 {[%clk 0:01:51]} 12. Ne2 {[%clk 0:01:45]}  Qxg2 {[%clk 0:01:44]} 13. O-O-O {[%clk 0:01:44]}  Qc6 {[%clk 0:01:43]} 14. Qd4 {[%clk 0:01:24]}  O-O {[%clk 0:01:42]} 15. h4 {[%clk 0:01:20]}  b5 {[%clk 0:01:40]} 16. Bd3 {[%clk 0:01:16]}  Bb7 {[%clk 0:01:36]} 17. h5 {[%clk 0:01:12]}  Qb6 {[%clk 0:00:41]} 18. Qe5 {[%clk 0:00:25]}  Bxh1 {[%clk 0:00:34]} 19. hxg6 {[%clk 0:00:25]}  hxg6 {[%clk 0:00:26]} 20. Rxh1 {[%clk 0:00:24]}  Qxf2 {[%clk 0:00:24]} 21. Rh8+ {[%clk 0:00:22]}  Kf7 {[%clk 0:00:23]} 22. Rh7+ {[%clk 0:00:22]}  Ke8 {[%clk 0:00:19]} 23. Qd6 {[%clk 0:00:20]}  Qe1# {[%clk 0:00:15]} 0-1

[Event "December 5 Late 2023"]
[Site "https://www.chess.com"]
[Date "2023.12.05"]
[Round "7"]
[White "Dmitriev, Sergey"]
[Black "Nery Junior, Jose Antonio"]
[Result "1-0"]
[Board "127"]
[TimeControl "180+1"]
[WhiteFideId "14101785"]
[BlackFideId "2104822"]
[WhiteElo "1981"]
[BlackElo "2355"]
[WhiteTeam "UKR"]
[BlackTeam "BRA"]
[WhiteClock "0:00:32"]
[BlackClock "0:00:00"]

1. e4 {[%clk 0:03:00]}  c5 {[%clk 0:02:59]} 2. Nf3 {[%clk 0:03:00]}  d6 {[%clk 0:03:00]} 3. d4 {[%clk 0:02:54]}  cxd4 {[%clk 0:03:01]} 4. Nxd4 {[%clk 0:02:53]}  Nf6 {[%clk 0:03:01]} 5. Bb5+ {[%clk 0:02:52]}  Bd7 {[%clk 0:03:01]} 6. Bxd7+ {[%clk 0:02:51]}  Qxd7 {[%clk 0:03:01]} 7. Nc3 {[%clk 0:02:50]}  a6 {[%clk 0:03:01]} 8. O-O {[%clk 0:02:49]}  g6 {[%clk 0:02:52]} 9. Re1 {[%clk 0:02:48]}  Bg7 {[%clk 0:02:51]} 10. Bg5 {[%clk 0:02:46]}  O-O {[%clk 0:02:46]} 11. Nf3 {[%clk 0:02:36]}  Nc6 {[%clk 0:02:41]} 12. e5 {[%clk 0:02:13]}  Nxe5 {[%clk 0:02:33]} 13. Nxe5 {[%clk 0:02:08]}  dxe5 {[%clk 0:02:34]} 14. Qxd7 {[%clk 0:02:01]}  Nxd7 {[%clk 0:02:31]} 15. Bxe7 {[%clk 0:02:02]}  Rfe8 {[%clk 0:02:31]} 16. Bh4 {[%clk 0:01:56]}  Rac8 {[%clk 0:02:16]} 17. Rad1 {[%clk 0:01:55]}  Nf6 {[%clk 0:02:11]} 18. Bxf6 {[%clk 0:01:50]}  Bxf6 {[%clk 0:02:08]} 19. Rd7 {[%clk 0:01:50]}  b5 {[%clk 0:02:06]} 20. a3 {[%clk 0:01:45]}  Kg7 {[%clk 0:02:00]} 21. Red1 {[%clk 0:01:44]}  e4 {[%clk 0:01:56]} 22. Nxe4 {[%clk 0:01:38]}  Bxb2 {[%clk 0:01:50]} 23. Nd6 {[%clk 0:01:35]}  Rcd8 {[%clk 0:01:33]} 24. Nxe8+ {[%clk 0:01:35]}  Rxe8 {[%clk 0:01:34]} 25. R7d3 {[%clk 0:01:29]}  Re2 {[%clk 0:01:31]} 26. R3d2 {[%clk 0:01:15]}  Rxd2 {[%clk 0:01:21]} 27. Rxd2 {[%clk 0:01:15]}  Bxa3 {[%clk 0:01:22]} 28. Kf1 {[%clk 0:01:10]}  Kf6 {[%clk 0:01:04]} 29. Ke2 {[%clk 0:01:10]}  Ke6 {[%clk 0:00:56]} 30. Kd3 {[%clk 0:01:10]}  Bd6 {[%clk 0:00:47]} 31. Kd4 {[%clk 0:01:04]}  Bxh2 {[%clk 0:00:42]} 32. g3 {[%clk 0:01:03]}  h5 {[%clk 0:00:38]} 33. Ke3 {[%clk 0:01:03]}  h4 {[%clk 0:00:33]} 34. gxh4 {[%clk 0:00:56]}  Be5 {[%clk 0:00:29]} 35. f4 {[%clk 0:00:53]}  Bd6 {[%clk 0:00:24]} 36. Ke4 {[%clk 0:00:48]}  a5 {[%clk 0:00:22]} 37. c3 {[%clk 0:00:47]}  a4 {[%clk 0:00:18]} 38. Rb2 {[%clk 0:00:43]}  a3 {[%clk 0:00:12]} 39. Rxb5 {[%clk 0:00:42]}  a2 {[%clk 0:00:11]} 40. Ra5 {[%clk 0:00:42]}  Be7 {[%clk 0:00:06]} 41. Rxa2 {[%clk 0:00:38]}  Bxh4 {[%clk 0:00:06]} 42. c4 {[%clk 0:00:37]}  Be7 {[%clk 0:00:05]} 43. Ra6+ {[%clk 0:00:37]}  Kd7 {[%clk 0:00:04]} 44. Kd5 {[%clk 0:00:36]}  Bd8 {[%clk 0:00:02]} 45. Ra7+ {[%clk 0:00:35]}  Bc7 {[%clk 0:00:03]} 46. c5 {[%clk 0:00:34]}  f6 {[%clk 0:00:03]} 47. Ra6 {[%clk 0:00:33]}  Bd8 {[%clk 0:00:00]} 48. c6+ {[%clk 0:00:32]} 1-0

[Event "December 5 Late 2023"]
[Site "https://www.chess.com"]
[Date "2023.12.05"]
[Round "7"]
[White "Travadon, Loic"]
[Black "Degtiarev, Evgeny"]
[Result "1-0"]
[Board "130"]
[TimeControl "180+1"]
[WhiteFideId "26092131"]
[BlackFideId "4149610"]
[WhiteElo "2150"]
[BlackElo "2329"]
[WhiteTeam "FRA"]
[BlackTeam "GER"]
[WhiteClock "0:01:36"]
[BlackClock "0:00:00"]

1. e4 {[%clk 0:03:00]}  e5 {[%clk 0:02:58]} 2. Nc3 {[%clk 0:02:48]}  Nf6 {[%clk 0:02:54]} 3. f4 {[%clk 0:02:45]}  d5 {[%clk 0:02:48]} 4. fxe5 {[%clk 0:02:46]}  Nxe4 {[%clk 0:02:46]} 5. Nf3 {[%clk 0:02:45]}  Be7 {[%clk 0:02:29]} 6. Qe2 {[%clk 0:02:43]}  Nxc3 {[%clk 0:02:25]} 7. dxc3 {[%clk 0:02:44]}  c5 {[%clk 0:02:22]} 8. Bf4 {[%clk 0:02:43]}  Nc6 {[%clk 0:02:19]} 9. O-O-O {[%clk 0:02:41]}  Be6 {[%clk 0:02:20]} 10. Kb1 {[%clk 0:02:40]}  Qa5 {[%clk 0:02:16]} 11. h4 {[%clk 0:02:36]}  d4 {[%clk 0:02:09]} 12. c4 {[%clk 0:02:35]}  b5 {[%clk 0:01:58]} 13. Qe4 {[%clk 0:02:23]}  Rc8 {[%clk 0:01:50]} 14. Ng5 {[%clk 0:02:15]}  Bxg5 {[%clk 0:01:39]} 15. hxg5 {[%clk 0:02:16]}  bxc4 {[%clk 0:01:36]} 16. Rxh7 {[%clk 0:02:15]}  Rxh7 {[%clk 0:01:35]} 17. Qxh7 {[%clk 0:02:14]}  c3 {[%clk 0:01:33]} 18. b3 {[%clk 0:02:06]}  Nb4 {[%clk 0:01:23]} 19. a4 {[%clk 0:02:05]}  Nd5 {[%clk 0:01:00]} 20. Bb5+ {[%clk 0:02:01]}  Ke7 {[%clk 0:00:59]} 21. Qxg7 {[%clk 0:01:59]}  a6 {[%clk 0:00:49]} 22. g6 {[%clk 0:01:45]}  axb5 {[%clk 0:00:34]} 23. Bg5+ {[%clk 0:01:42]}  Kd7 {[%clk 0:00:34]} 24. gxf7 {[%clk 0:01:41]}  Bxf7 {[%clk 0:00:13]} 25. Qxf7+ {[%clk 0:01:40]}  Kc6 {[%clk 0:00:13]} 26. Qe6+ {[%clk 0:01:39]}  Kb7 {[%clk 0:00:14]} 27. Qxd5+ {[%clk 0:01:39]}  Rc6 {[%clk 0:00:13]} 28. Qd7+ {[%clk 0:01:36]}  Rc7 {[%clk 0:00:10]} 29. Qxb5+ {[%clk 0:01:35]}  Qxb5 {[%clk 0:00:00]} 30. axb5 {[%clk 0:01:36]} 1-0

[Event "December 5 Late 2023"]
[Site "https://www.chess.com"]
[Date "2023.12.05"]
[Round "7"]
[White "Esmeraldas Huachi, Anderson"]
[Black "Gumugama"]
[Result "0-1"]
[Board "131"]
[TimeControl "180+1"]
[WhiteFideId "3616363"]
[WhiteElo "2419"]
[BlackElo "2181"]
[WhiteTeam "ECU"]
[WhiteClock "0:01:51"]
[BlackClock "0:01:26"]

1. d4 {[%clk 0:03:00]}  Nf6 {[%clk 0:02:56]} 2. c4 {[%clk 0:02:59]}  g6 {[%clk 0:02:56]} 3. Nc3 {[%clk 0:02:58]}  Bg7 {[%clk 0:02:57]} 4. e4 {[%clk 0:02:57]}  d6 {[%clk 0:02:57]} 5. Be2 {[%clk 0:02:57]}  O-O {[%clk 0:02:57]} 6. Be3 {[%clk 0:02:57]}  Nc6 {[%clk 0:02:52]} 7. d5 {[%clk 0:02:55]}  Nb8 {[%clk 0:02:49]} 8. h3 {[%clk 0:02:55]}  a5 {[%clk 0:02:48]} 9. f4 {[%clk 0:02:53]}  Nbd7 {[%clk 0:02:41]} 10. Nf3 {[%clk 0:02:53]}  e5 {[%clk 0:02:40]} 11. fxe5 {[%clk 0:02:52]}  Nxe5 {[%clk 0:02:37]} 12. Nxe5 {[%clk 0:02:52]}  dxe5 {[%clk 0:02:37]} 13. O-O {[%clk 0:02:53]}  Nd7 {[%clk 0:02:34]} 14. Nb5 {[%clk 0:02:47]}  b6 {[%clk 0:02:29]} 15. d6 {[%clk 0:02:46]}  c6 {[%clk 0:02:23]} 16. Nc7 {[%clk 0:02:45]}  Rb8 {[%clk 0:02:21]} 17. Bg4 {[%clk 0:02:44]}  Nc5 {[%clk 0:02:10]} 18. Bxc5 {[%clk 0:02:40]}  Bxg4 {[%clk 0:02:03]} 19. Qxg4 {[%clk 0:02:33]}  bxc5 {[%clk 0:02:03]} 20. Rad1 {[%clk 0:02:33]}  Rxb2 {[%clk 0:02:03]} 21. Ne6 {[%clk 0:02:20]}  fxe6 {[%clk 0:01:57]} 22. Qxe6+ {[%clk 0:02:21]}  Kh8 {[%clk 0:01:57]} 23. Rxf8+ {[%clk 0:02:21]}  Bxf8 {[%clk 0:01:49]} 24. Qxe5+ {[%clk 0:02:22]}  Bg7 {[%clk 0:01:49]} 25. Qe7 {[%clk 0:02:17]}  Rb8 {[%clk 0:01:43]} 26. e5 {[%clk 0:02:17]}  Kg8 {[%clk 0:01:33]} 27. e6 {[%clk 0:02:17]}  Bd4+ {[%clk 0:01:28]} 28. Rxd4 {[%clk 0:02:13]}  Qxe7 {[%clk 0:01:26]} 29. dxe7 {[%clk 0:01:51]}  cxd4 {[%clk 0:01:26]} 0-1

[Event "December 5 Late 2023"]
[Site "https://www.chess.com"]
[Date "2023.12.05"]
[Round "7"]
[White "Antonio, Jorge Carlos"]
[Black "Lutz, Igor Oscar"]
[Result "1-0"]
[Board "135"]
[TimeControl "180+1"]
[WhiteFideId "113190"]
[BlackFideId "2110806"]
[WhiteElo "2295"]
[BlackElo "2077"]
[WhiteTeam "ARG"]
[BlackTeam "BRA"]
[WhiteClock "0:00:59"]
[BlackClock "0:00:06"]

1. d4 {[%clk 0:03:00]}  d5 {[%clk 0:02:36]} 2. Bf4 {[%clk 0:02:56]}  Nf6 {[%clk 0:02:35]} 3. e3 {[%clk 0:02:56]}  c5 {[%clk 0:02:36]} 4. Nf3 {[%clk 0:02:56]}  Nc6 {[%clk 0:02:36]} 5. c3 {[%clk 0:02:57]}  Qb6 {[%clk 0:02:36]} 6. b3 {[%clk 0:02:54]}  Bf5 {[%clk 0:02:35]} 7. Bd3 {[%clk 0:02:53]}  Bxd3 {[%clk 0:02:34]} 8. Qxd3 {[%clk 0:02:52]}  e6 {[%clk 0:02:29]} 9. O-O {[%clk 0:02:52]}  Be7 {[%clk 0:02:20]} 10. Nbd2 {[%clk 0:02:51]}  O-O {[%clk 0:02:18]} 11. Ne5 {[%clk 0:02:51]}  Nxe5 {[%clk 0:02:16]} 12. Bxe5 {[%clk 0:02:50]}  Ng4 {[%clk 0:02:12]} 13. Bg3 {[%clk 0:02:47]}  Bd6 {[%clk 0:02:12]} 14. c4 {[%clk 0:02:31]}  Bxg3 {[%clk 0:02:11]} 15. hxg3 {[%clk 0:02:30]}  cxd4 {[%clk 0:02:10]} 16. exd4 {[%clk 0:02:30]}  dxc4 {[%clk 0:01:58]} 17. bxc4 {[%clk 0:02:30]}  Rfd8 {[%clk 0:01:53]} 18. Nf3 {[%clk 0:02:29]}  Rac8 {[%clk 0:01:43]} 19. Qb3 {[%clk 0:02:20]}  Qxb3 {[%clk 0:01:15]} 20. axb3 {[%clk 0:02:19]}  a6 {[%clk 0:01:16]} 21. Rfd1 {[%clk 0:02:15]}  Kf8 {[%clk 0:01:09]} 22. Ra5 {[%clk 0:02:14]}  Ke7 {[%clk 0:01:08]} 23. Rg5 {[%clk 0:02:06]}  Nf6 {[%clk 0:01:02]} 24. Rxg7 {[%clk 0:02:04]}  Kf8 {[%clk 0:00:53]} 25. Rg5 {[%clk 0:02:04]}  Ne4 {[%clk 0:00:52]} 26. Rh5 {[%clk 0:02:00]}  Kg7 {[%clk 0:00:51]} 27. Rh4 {[%clk 0:01:53]}  Nc3 {[%clk 0:00:50]} 28. Rd3 {[%clk 0:01:47]}  Ne2+ {[%clk 0:00:39]} 29. Kh2 {[%clk 0:01:45]}  Nc1 {[%clk 0:00:40]} 30. Re3 {[%clk 0:01:44]}  Rc6 {[%clk 0:00:27]} 31. Rg4+ {[%clk 0:01:37]}  Kf8 {[%clk 0:00:22]} 32. Rh4 {[%clk 0:01:35]}  Kg7 {[%clk 0:00:21]} 33. Ne5 {[%clk 0:01:33]}  Rb6 {[%clk 0:00:20]} 34. Rf3 {[%clk 0:01:23]}  f5 {[%clk 0:00:18]} 35. c5 {[%clk 0:01:14]}  Rxb3 {[%clk 0:00:17]} 36. Nc4 {[%clk 0:01:13]}  Rxf3 {[%clk 0:00:17]} 37. gxf3 {[%clk 0:01:13]}  Ne2 {[%clk 0:00:16]} 38. Nd6 {[%clk 0:01:11]}  Rd7 {[%clk 0:00:16]} 39. g4 {[%clk 0:01:11]}  fxg4 {[%clk 0:00:15]} 40. Rxg4+ {[%clk 0:01:11]}  Kf6 {[%clk 0:00:14]} 41. Re4 {[%clk 0:01:08]}  Nc3 {[%clk 0:00:13]} 42. Re1 {[%clk 0:01:07]}  Nd5 {[%clk 0:00:12]} 43. Rb1 {[%clk 0:01:06]}  Nf4 {[%clk 0:00:09]} 44. Kg3 {[%clk 0:01:06]}  Ne2+ {[%clk 0:00:09]} 45. Kg4 {[%clk 0:01:03]}  Rg7+ {[%clk 0:00:08]} 46. Kh3 {[%clk 0:01:02]}  Nf4+ {[%clk 0:00:09]} 47. Kh2 {[%clk 0:01:01]}  Rg2+ {[%clk 0:00:09]} 48. Kh1 {[%clk 0:01:00]}  Rxf2 {[%clk 0:00:06]} 49. Ne4+ {[%clk 0:00:59]} 1-0

[Event "December 5 Late 2023"]
[Site "https://www.chess.com"]
[Date "2023.12.05"]
[Round "7"]
[White "Burke, Paul"]
[Black "Joubert, Dantelle"]
[Result "0-1"]
[Board "142"]
[TimeControl "180+1"]
[WhiteFideId "2605767"]
[BlackFideId "14310813"]
[WhiteElo "1807"]
[BlackElo "2149"]
[WhiteTeam "CAN"]
[BlackTeam "RSA"]
[WhiteClock "0:00:00"]
[BlackClock "0:01:14"]

1. e4 {[%clk 0:01:41]}  e5 {[%clk 0:02:53]} 2. Nf3 {[%clk 0:01:41]}  Nc6 {[%clk 0:02:52]} 3. Bc4 {[%clk 0:01:41]}  Bc5 {[%clk 0:02:51]} 4. b4 {[%clk 0:01:40]}  Bxb4 {[%clk 0:02:49]} 5. c3 {[%clk 0:01:40]}  Bd6 {[%clk 0:02:49]} 6. d4 {[%clk 0:01:40]}  Qe7 {[%clk 0:02:18]} 7. O-O {[%clk 0:01:38]}  Nf6 {[%clk 0:02:16]} 8. Ng5 {[%clk 0:01:34]}  O-O {[%clk 0:02:15]} 9. Nxf7 {[%clk 0:01:34]}  Rxf7 {[%clk 0:02:14]} 10. Bxf7+ {[%clk 0:01:34]}  Qxf7 {[%clk 0:02:14]} 11. d5 {[%clk 0:01:29]}  Ne7 {[%clk 0:02:12]} 12. Qe2 {[%clk 0:01:28]}  Ng6 {[%clk 0:02:11]} 13. c4 {[%clk 0:01:15]}  Bc5 {[%clk 0:02:09]} 14. Nc3 {[%clk 0:01:13]}  Bd4 {[%clk 0:02:07]} 15. Bd2 {[%clk 0:01:03]}  d6 {[%clk 0:02:03]} 16. h3 {[%clk 0:01:01]}  Bxc3 {[%clk 0:01:39]} 17. Bxc3 {[%clk 0:01:01]}  Nf4 {[%clk 0:01:38]} 18. Qf3 {[%clk 0:00:41]}  Qg6 {[%clk 0:01:34]} 19. Kh2 {[%clk 0:00:30]}  Nxe4 {[%clk 0:01:34]} 20. Be1 {[%clk 0:00:18]}  Ng5 {[%clk 0:01:27]} 21. Qe3 {[%clk 0:00:00]}  Ngxh3 {[%clk 0:01:14]} 0-1

[Event "December 5 Late 2023"]
[Site "https://www.chess.com"]
[Date "2023.12.05"]
[Round "7"]
[White "th3d4rkness"]
[Black "Yushko, Olga"]
[Result "0-1"]
[Board "143"]
[TimeControl "180+1"]
[BlackFideId "14114500"]
[WhiteElo "2137"]
[BlackElo "2100"]
[BlackTeam "UKR"]
[WhiteClock "0:00:39"]
[BlackClock "0:00:53"]

1. e4 {[%clk 0:03:00]}  e6 {[%clk 0:02:59]} 2. d3 {[%clk 0:03:00]}  d5 {[%clk 0:03:00]} 3. Nd2 {[%clk 0:03:00]}  Nf6 {[%clk 0:03:00]} 4. Ngf3 {[%clk 0:03:01]}  Be7 {[%clk 0:03:00]} 5. g3 {[%clk 0:03:01]}  O-O {[%clk 0:03:00]} 6. Bg2 {[%clk 0:03:01]}  c5 {[%clk 0:03:01]} 7. O-O {[%clk 0:03:00]}  Nc6 {[%clk 0:03:02]} 8. e5 {[%clk 0:03:00]}  Nd7 {[%clk 0:03:02]} 9. Re1 {[%clk 0:03:01]}  Qc7 {[%clk 0:03:01]} 10. Qe2 {[%clk 0:03:00]}  b5 {[%clk 0:02:59]} 11. h4 {[%clk 0:03:00]}  a5 {[%clk 0:02:42]} 12. Nf1 {[%clk 0:03:00]}  Ba6 {[%clk 0:02:34]} 13. Bf4 {[%clk 0:02:58]}  b4 {[%clk 0:02:26]} 14. N1h2 {[%clk 0:02:31]}  c4 {[%clk 0:02:21]} 15. a3 {[%clk 0:02:13]}  Rfb8 {[%clk 0:02:09]} 16. Ng5 {[%clk 0:01:49]}  Bxg5 {[%clk 0:01:51]} 17. hxg5 {[%clk 0:01:48]}  Nd4 {[%clk 0:01:49]} 18. Qh5 {[%clk 0:01:37]}  Nxc2 {[%clk 0:01:47]} 19. Ng4 {[%clk 0:01:35]}  Nxa1 {[%clk 0:01:44]} 20. Rxa1 {[%clk 0:01:32]}  cxd3 {[%clk 0:01:41]} 21. Nf6+ {[%clk 0:01:32]}  Nxf6 {[%clk 0:01:38]} 22. gxf6 {[%clk 0:01:26]}  Qd8 {[%clk 0:01:32]} 23. Qg5 {[%clk 0:01:19]}  Qf8 {[%clk 0:01:26]} 24. Bf3 {[%clk 0:01:15]}  bxa3 {[%clk 0:01:23]} 25. bxa3 {[%clk 0:01:15]}  Rb2 {[%clk 0:01:08]} 26. Kg2 {[%clk 0:01:14]}  h6 {[%clk 0:00:59]} 27. Qg4 {[%clk 0:01:12]}  g6 {[%clk 0:00:54]} 28. Rh1 {[%clk 0:01:10]}  Qc5 {[%clk 0:00:53]} 29. Be3 {[%clk 0:00:39]}  Qxe3 {[%clk 0:00:53]} 0-1

[Event "December 5 Late 2023"]
[Site "https://www.chess.com"]
[Date "2023.12.05"]
[Round "7"]
[White "Lohani, Sujana"]
[Black "Smirnov, Timofey"]
[Result "1-0"]
[Board "144"]
[TimeControl "180+1"]
[WhiteFideId "12311987"]
[BlackFideId "24176427"]
[WhiteElo "2001"]
[BlackElo "2041"]
[WhiteTeam "NEP"]
[BlackTeam "RUS"]
[WhiteClock "0:01:34"]
[BlackClock "0:00:00"]

1. d4 {[%clk 0:03:00]}  d5 {[%clk 0:02:59]} 2. c4 {[%clk 0:03:00]}  c6 {[%clk 0:03:00]} 3. cxd5 {[%clk 0:02:59]}  cxd5 {[%clk 0:03:01]} 4. Nc3 {[%clk 0:02:59]}  Nf6 {[%clk 0:03:01]} 5. f3 {[%clk 0:02:58]}  e6 {[%clk 0:02:56]} 6. e4 {[%clk 0:02:58]}  dxe4 {[%clk 0:02:56]} 7. fxe4 {[%clk 0:02:59]}  Be7 {[%clk 0:02:44]} 8. e5 {[%clk 0:02:54]}  Nd5 {[%clk 0:02:42]} 9. Nf3 {[%clk 0:02:54]}  O-O {[%clk 0:02:39]} 10. Bd3 {[%clk 0:02:54]}  Bb4 {[%clk 0:02:33]} 11. O-O {[%clk 0:02:50]}  Nxc3 {[%clk 0:02:32]} 12. bxc3 {[%clk 0:02:50]}  Bxc3 {[%clk 0:02:33]} 13. Bxh7+ {[%clk 0:02:49]}  Kh8 {[%clk 0:01:38]} 14. Rb1 {[%clk 0:02:35]}  Nc6 {[%clk 0:01:32]} 15. Be3 {[%clk 0:02:26]}  Bxd4 {[%clk 0:01:09]} 16. Bxd4 {[%clk 0:02:19]}  Kxh7 {[%clk 0:01:05]} 17. Qc2+ {[%clk 0:02:11]}  g6 {[%clk 0:01:01]} 18. Rbd1 {[%clk 0:02:10]}  Nxd4 {[%clk 0:00:59]} 19. Rxd4 {[%clk 0:02:09]}  Qb6 {[%clk 0:00:59]} 20. Kh1 {[%clk 0:02:07]}  Kg7 {[%clk 0:00:55]} 21. Qd2 {[%clk 0:01:57]}  Qc6 {[%clk 0:00:42]} 22. Qg5 {[%clk 0:01:50]}  Qa6 {[%clk 0:00:22]} 23. Qf6+ {[%clk 0:01:48]}  Kg8 {[%clk 0:00:23]} 24. Rg1 {[%clk 0:01:34]}  b6 {[%clk 0:00:00]} 25. Rh4 {[%clk 0:01:34]} 1-0